Cogmind - Beta 14 @@@ ROGUE MODE // 2025.03.19 @ 22:01:39 Player: kat Result: Self-destructed Performance ------------- Evolutions (1) 500 Regions Visited (3) 600 Robots Destroyed (21) 105 Value Destroyed (595) 595 Prototype IDs (6) 120 Alien Tech Used (0) 0 Bonus (0) 0 TOTAL SCORE: 1920 Bonus ------- None Cogmind --------- Core Integrity 231/400 Matter 280/300 Energy 280/280 System Corruption 0% Temperature Cool (9) Movement Walking (120) Location -9/Materials Parts ------- > --- POWER (1) -------- Heavy Ion Engine > --- PROPULSION (2) --- Improved Aluminum Leg Improved Aluminum Leg > --- UTILITY (3) ------ Small Storage Unit Transport Network Coupler > --- WEAPON (3) ------- Small Laser Light Assault Rifle Hammer > --- INVENTORY (8) ---- Light Ion Engine Improved Aluminum Leg Improved Aluminum Leg Improved Aluminum Leg Improved Heat Sink Large Storage Unit Targeting Computer Improved Assault Rifle Peak State ------------ > --- POWER ------------ Heavy Ion Engine > --- PROPULSION ------- Improved Aluminum Leg Improved Aluminum Leg > --- UTILITY ---------- Small Storage Unit Transport Network Coupler > --- WEAPON ----------- Small Laser Light Assault Rifle Hammer > --- INVENTORY -------- Light Ion Engine Aluminum Leg Aluminum Leg Aluminum Leg Improved Heat Sink Large Storage Unit Targeting Computer Improved Assault Rifle [Rating: 13] Favorites ----------- Power Ion Engine Engine Ion Engine Propulsion Aluminum Leg Leg Aluminum Leg Utility Small Storage Unit Storage Small Storage Unit Processor Transport Network Coupler Protection Weapon Shielding Weapon Small Laser Energy Gun Small Laser Ballistic Gun Light Assault Rifle Launcher Grenade Launcher Impact Weapon Hammer Slashing Weapon Mining Claw Build | -11 -10 -10 -9 ------- Run | Yrd Mat Min Mat Slots Evolved 2 | . . . 2 Power . | . . . . Propulsion . | . . . . Utility 1 | . . . 1 Weapon 1 | . . . 1 Parts Attached 24 | 6 3 . 15 Power 3 | 1 . . 2 Engine 3 | 1 . . 2 Core . | . . . . Reactor . | . . . . Propulsion 8 | 2 1 . 5 Treads . | . . . . Leg 8 | 2 1 . 5 Wheel . | . . . . Hover . | . . . . Flight . | . . . . Utility 5 | 1 1 . 3 Device . | . . . . Storage 1 | 1 . . . Processor 2 | . . . 2 Hackware . | . . . . Protection 2 | . 1 . 1 Artifact . | . . . . Weapon 8 | 2 1 . 5 Energy Gun 4 | 2 1 . 1 Energy Cannon . | . . . . Ballistic Gun 1 | . . . 1 Ballistic Cannon . | . . . . Launcher 1 | . . . 1 Special Weapon . | . . . . Impact Weapon 1 | . . . 1 Slashing Weapon 1 | . . . 1 Piercing Weapon . | . . . . Special Melee Weapon . | . . . . Unidentified Prototypes . | . . . . Parts Lost 7 | . . . 7 Power 1 | . . . 1 Propulsion . | . . . . Utility 3 | . . . 3 Weapon 3 | . . . 3 Highest Loss Streak 6 | . . . 6 To Critical Strikes . | . . . . Average Slot Usage (%) 90 | . 96 100 83 Engine 11 | . 14 14 9 Leg 24 | . 28 28 21 Storage 12 | . 14 14 11 Processor 1 | . . . 4 Protection 8 | . 10 14 6 Energy Gun 18 | . 28 28 7 Ballistic Gun 3 | . . . 6 Launcher 1 | . . . 2 Impact Weapon 4 | . . . 8 Slashing Weapon 2 | . . . 4 Peak Build Rating 13 | 6 7 7 13 Average Rating 8 | 4 6 7 9 On Entrance 5 | . 6 7 7 Naked Turns . | . . . . Heaviest Build 21 | 13 13 13 21 Greatest Support 26 | 20 20 20 26 Greatest Overweight (x) 1 | . . . 1 Average Overweight (x) . | . . . . Largest Inventory Capacity 8 | 8 8 8 8 Average Capacity 7 | 6 8 8 8 Most Carried 8 | 1 6 7 8 Average Carried 5 | . 2 6 7 Final Capacity 8 | 8 8 8 8 Final Carried 8 | 1 6 7 8 Class Distribution -------------------- 85% | Mutant 5% | Scavenger-Mutant 4% | Gunner 4% | Tank Dominant Class ---------------- Mutant | -10/Materials Mutant | -10/Mines Mutant | -9/Materials Resources | -11 -10 -10 -9 ----------- Run | Yrd Mat Min Mat Matter Collected 413 | 245 45 . 123 Remotely . | . . . . Salvage Created 696 | 30 242 . 424 Parts 36 | 2 13 . 21 Haulers Intercepted 1 | . . . 1 Recyclers Shooed . | . . . . Parts Field Recycled . | . . . . Retrieved Matter . | . . . . Parts Self-Destructed . | . . . . Prevented . | . . . . Kills | -11 -10 -10 -9 ------- Run | Yrd Mat Min Mat Combat Hostiles Destroyed 17 | . 8 . 9 Melee 4 | . . . 4 Guns 9 | . 7 . 2 AOE 2 | . 1 . 1 Classes Destroyed 8 | 1 2 . 5 Tunneler 1 | 1 . . . Hauler 1 | . . . 1 Operator 1 | . . . 1 Watcher 1 | . . . 1 Swarmer 3 | . 3 . . Grunt 11 | . 5 . 6 Duelist 1 | . . . 1 Sentry 2 | . . . 2 Best Kill Streak 4 | 1 3 . 4 Combat Bots Only 3 | . 3 . 3 Max Kills in Single Turn 2 | 1 1 . 2 Gunslinging . | . . . . Exploded 1 | . 1 . 1 Melee 1 | . . . 1 Uniques/NPCs Destroyed . | . . . . Combat | -11 -10 -10 -9 -------- Run | Yrd Mat Min Mat Hostile Shots Fired 107 | . 47 . 60 Missed 26 | . 13 . 13 Damage Taken 1208 | . 383 . 825 Core 271 | . 102 . 169 Absorbed by Shields . | . . . . Redirected to Shielding 53 | . 23 . 30 Core Remaining (%) 79 | 100 . 59 . Volleys Fired 46 | 2 29 . 15 Largest 2 | 1 2 . 2 Hottest 80 | 40 80 . 80 Shots Fired 84 | 2 58 . 24 Gun 82 | 2 58 . 22 Cannon . | . . . . Launcher 2 | . . . 2 Special . | . . . . Kinetic 3 | . . . 3 Thermal 69 | . 50 . 19 Explosive 2 | . . . 2 Electromagnetic 10 | 2 8 . . Robot Hit Streak 17 | 1 8 . 17 Robot Miss Streak 5 | 1 5 . 1 Penetration Max . | . . . . Secondary Targets 1 | . 1 . . Max Gunslinging Chain 1 | . 1 . . Shots Hit Robots 78 | 1 33 . 44 Core Hits 29 | 1 14 . 14 Critical Kills 1 | . . . 1 Critical Parts Destroyed 1 | . . . 1 Critical Strikes 2 | . . . 2 Smash 2 | . . . 2 Melee Attacks 23 | . . . 23 Impact 20 | . . . 20 Slashing 3 | . . . 3 Piercing . | . . . . Sneak Attacks 2 | . . . 2 Combat Hostiles . | . . . . Follow-up Attacks 2 | . . . 2 Damage Inflicted 1319 | 12 404 2 901 Guns 600 | 12 368 . 220 Cannons . | . . . . Explosions 182 | . 33 . 149 Melee 532 | . . . 532 Ramming 5 | . 3 2 . Kinetic 26 | . . . 26 Thermal 515 | . 321 . 194 Explosive 149 | . . . 149 Electromagnetic 92 | 12 80 . . Impact 483 | . . . 483 Slashing 49 | . . . 49 Piercing . | . . . . Highest Corruption . | . . . . Average Corruption . | . . . . Corruption Purged . | . . . . Corruption Blocked . | . . . . Overload Shots . | . . . . Overflow Damage 81 | . . . 81 Projectiles . | . . . . Explosions 2 | . . . 2 Melee 79 | . . . 79 Knockbacks . | . . . . Impact . | . . . . Kinetic . | . . . . Secondary . | . . . . Self-Inflicted Damage 73 | . . . 73 Shots 2 | . . . 2 Rammed . | . . . . Targets Rammed 2 | . 1 1 . Kicked 2 | . 1 1 . Crushed . | . . . . Highest Temperature 190 | . 190 . 54 Average Temperature 61 | . 69 . 31 Received Heat Transfer 396 | . 192 . 204 Siege Activations . | . . . . Robots Corrupted 3 | . . . 3 Combat Hostiles 2 | . . . 2 Parts Fried 4 | . 1 . 3 Impact Corruptions 5 | . . . 5 Robots Melted . | . . . . Combat Hostiles . | . . . . Parts Melted 2 | . 2 . . Heat Transferred 1100 | . 650 . 450 Parts Sabotaged . | . . . . Parts Stolen . | . . . . Parts Stripped . | . . . . Power Chain Reactions 1 | . 1 . . Alert | -11 -10 -10 -9 ------- Run | Yrd Mat Min Mat Peak Influence 291 | 5 291 113 262 Initial 113 | . 3 113 43 Average 132 | . 173 113 126 Maximum Alert Level 1 | . 1 . 1 Low Security (%) 73 | 100 51 100 80 Level 1 26 | . 48 . 19 Level 2 . | . . . . Level 3 . | . . . . Level 4 . | . . . . Level 5 . | . . . . High Security . | . . . . Max Security . | . . . . Squads Dispatched 3 | . 2 . 1 Investigation 1 | . 1 . . Extermination . | . . . . Reinforcement 2 | . 1 . 1 Assault . | . . . . Garrison . | . . . . Intercept . | . . . . Searches Triggered . | . . . . Construction Impeded . | . . . . Haulers Reinforced . | . . . . Active Scanning Responses . | . . . . Cargo Convoy Interrupts . | . . . . Stealth | -11 -10 -10 -9 --------- Run | Yrd Mat Min Mat Distress Signals . | . . . . Communications Jammed . | . . . . Distress Signals . | . . . . Times Spotted 30 | . 15 . 15 Peak Tracking Total 5 | . 4 . 5 Tactical Retreats 3 | . 2 . 1 Traps | -11 -10 -10 -9 ------- Run | Yrd Mat Min Mat Traps Triggered 1 | . 1 . . Indirectly . | . . . . Trap Hack Attempts . | . . . . Triggered . | . . . . Disarmed . | . . . . Reprogrammed . | . . . . Reused . | . . . . Traps Extracted . | . . . . Installed . | . . . . Triggered . | . . . . Machines | -11 -10 -10 -9 ---------- Run | Yrd Mat Min Mat Machines Disabled . | . . . . Max in Single Turn . | . . . . Machines Repaired . | . . . . Machines Dismantled . | . . . . Machines Sabotaged . | . . . . Overloaded Fab Kills . | . . . . Hacking | -11 -10 -10 -9 --------- Run | Yrd Mat Min Mat Machines Accessed 7 | . 3 . 4 Terminals 5 | . 3 . 2 Fabricators . | . . . . Repair Stations . | . . . . Recycling Units 1 | . . . 1 Scanalyzers 1 | . . . 1 Garrison Access . | . . . . Total Hacks 19 | . 8 . 11 Successful 13 | . 6 . 7 Failed 6 | . 2 . 4 Catastrophic . | . . . . Database Lockouts . | . . . . Manual 2 | . . . 2 Terminals 13 | . 8 . 5 Fabricators . | . . . . Repair Stations . | . . . . Recycling Units 1 | . . . 1 Scanalyzers 5 | . . . 5 Garrison Access . | . . . . Terminal Hacks 10 | . 6 . 4 Prototype ID Bank 3 | . 1 . 2 Emergency Access Points 2 | . 2 . . Alert Level 1 | . 1 . . Locate Traps 1 | . . . 1 Maintenance Status 1 | . . . 1 Patrol Status 1 | . 1 . . Hauler Manifests 1 | . 1 . . Fabricator Hacks . | . . . . Repair Station Hacks . | . . . . Recycling Unit Hacks . | . . . . Scanalyzer 2 | . . . 2 Insert Component 1 | . . . 1 Analyze 1 | . . . 1 Garrison Access Hacks . | . . . . Unauthorized Hacks 1 | . . . 1 Terminals . | . . . . Fabricators . | . . . . Repair Stations . | . . . . Recycling Units 1 | . . . 1 Reject 1 | . . . 1 Scanalyzers . | . . . . Garrison Access . | . . . . Data Cores Recovered . | . . . . Used . | . . . . Hacking Detections 5 | . 2 . 3 Full Trace Events 1 | . . . 1 Feedback Events . | . . . . Feedback Blocked . | . . . . Robot Schematics Acquired . | . . . . Robots Built . | . . . . Authchips . | . . . . Time . | . . . . Total Robot Build Rating . | . . . . Part Schematics Acquired 1 | . . . 1 Parts Built . | . . . . Authchips . | . . . . Time . | . . . . Total Part Build Rating . | . . . . Parts Repaired . | . . . . Time . | . . . . Parts Recycled . | . . . . Recycled Matter . | . . . . Retrieved Matter . | . . . . Retrieved Components . | . . . . Parts Scanalyzed 1 | . . . 1 Part Schematics Acquired 1 | . . . 1 Parts Damaged . | . . . . Bothacking | -11 -10 -10 -9 ------------ Run | Yrd Mat Min Mat Used RIF Installer . | . . . . Robots Hacked . | . . . . Non-combat . | . . . . Combat . | . . . . Robot Hacks Applied . | . . . . Relay Couplers Released . | . . . . Fabnet Peak Effective % . | . . . . Robots Rewired . | . . . . Allies Hacked . | . . . . Hacks Repelled . | . . . . Allies | -11 -10 -10 -9 -------- Run | Yrd Mat Min Mat Total Allies . | . . . . Largest Group . | . . . . Highest-Rated Group . | . . . . Highest-Rated Ally . | . . . . Total Orders . | . . . . Ally Attacks . | . . . . Total Damage . | . . . . Kills . | . . . . Allies Corrupted . | . . . . Allies Melted . | . . . . Intel | -11 -10 -10 -9 ------- Run | Yrd Mat Min Mat Robot Analysis Total . | . . . . Derelict Logs Recovered 1 | . . 1 . Drone Launches . | . . . . Drone Recoveries . | . . . . Exploration | -11 -10 -10 -9 ------------- Run | Yrd Mat Min Mat Turns Passed 1075 | 75 383 128 489 Spaces Moved 575 | 51 215 72 237 Core 2 | 2 . . . Treads . | . . . . Legs 573 | 49 215 72 237 Wheels . | . . . . Hover . | . . . . Flight . | . . . . Fastest Speed 50 | 50 120 120 120 Average Speed 121 | 117 120 120 123 Slowest Speed 190 | 120 120 120 190 Overloaded Moves . | . . . . Propulsion Burnouts . | . . . . Robots Hopped . | . . . . Cave-ins Triggered . | . . . . Exploration Rate (%) 23 | 4 37 22 30 Regions Visited 3 Branch Regions 1 Pre-discovered Areas 1 | . . 1 . Known Exits Taken . | . . . . Unknown Exits Taken 3 | 1 1 1 . Scrap Searched 1 | . . 1 . Spaces Dug . | . . . . Terrain Destroyed 6 | . 2 . 4 Melee . | . . . . Projectile . | . . . . AOE 6 | . 2 . 4 Terrain Rammed . | . . . . Walls Destroyed . | . . . . Machines Disabled . | . . . . Actions | -11 -10 -10 -9 --------- Run | Yrd Mat Min Mat Total 830 | 61 282 113 374 Wait 136 | 2 24 40 70 Move 572 | 50 214 71 237 Hop . | . . . . Pick Up 18 | 1 8 1 8 Fast Attach 14 | 6 1 . 7 Attach 4 | . 1 . 3 Detach . | . . . . Swap 6 | . 1 . 5 Drop 12 | . 3 . 9 Fire 46 | 2 29 . 15 Melee 20 | . . . 20 Ram . | . . . . Kick 2 | . 1 1 . Crush . | . . . . Escape Stasis . | . . . . Rewire . | . . . . Trap . | . . . . Miscellaneous . | . . . . Route ------- -11/Scrapyard -10/Materials (discovered 2 exits: *Mat / [*Min]) -10/Mines -9/Materials (discovered 2 exits: [*Min] / [*Sto]) History --------- Turn | Location | Event 6 | -11/Scrapyard | Discovered new exit (range 15) 76 | -11/Scrapyard | Entered Materials 252 | -10/Materials | Discovered new exit (range 15) 335 | -10/Materials | Build established: Mutant 397 | -10/Materials | Discovered new exit (range 12) 459 | -10/Materials | Entered Mines 464 | -10/Mines | Learned location of Zion (-6) 500 | -10/Mines | Assembled infested the area 565 | -10/Mines | Met a Derelict bent on vengeance 571 | -10/Mines | Discovered new exit (range 13) 587 | -10/Mines | Entered Materials 587 | -9/Materials | Evolved 2 slots: Utility x1, Weapon x1 715 | -9/Materials | Lost 6 parts (1p2u3w) 847 | -9/Materials | Discovered new exit (range 9) 952 | -9/Materials | Discovered new exit (range 12) 1076 | -9/Materials | Self-destructed Last Messages --------------- 01043_ Acquired Imp. Aluminum Leg. 01046_ R-06 Scavenger collects Aluminum Leg. 01049_ Connecting with Recycling Unit... [Achievement: True Hacker] >>Trojan(Reject) Trojan loaded successfully. Testing... Ejection routine running. Installed Trojans can be viewed by examining an interactive machine. See effect description details by clicking on the Trojan name. 01049_ Connecting with Recycling Unit... 01053_ R-06 Scavenger inserts Aluminum Leg into recycling unit. 01053_ Aluminum Leg discarded by recycling unit. 01056_ R-06 Scavenger inserts Aluminum Leg into recycling unit. 01056_ Aluminum Leg discarded by recycling unit. 01059_ R-06 Scavenger inserts Aluminum Leg into recycling unit. 01059_ Aluminum Leg discarded by recycling unit. 01062_ R-06 Scavenger inserts Aluminum Leg into recycling unit. 01062_ Aluminum Leg discarded by recycling unit. 01068_ R-06 Scavenger collects Aluminum Leg. Map ----- +----------------------------------------------------+ | ???????????????????????# #???????????????????? | | ???????????????????????# """ #???????????????????? | | ???????????????????????# """ #???????????????????? | | ???????????????????????# """ #???????????????????? | | +#######???????????????# #????#??????????????? | | #???????????????# """ #?? #??#???????????? | | #???????????????# """ ## #? #???????????? | | "T" #???#########???# """ + # #???????????? | | #???#"""""""#???# ## ?????????????? | | #???#" |"! "#???###+###? #??????????????? | | #####" "##### ## #??????????????? | | " #??????????????? | | " < % T #??????????????? | | " #??????????????? | | ##### ##### ##+###??????????????? | | ##############???### ###???????????????????? | | # """ #???????????# #?????????????a???????? | | = + """ #???????????# #?????????????????????? | | %%** # """ |##??????????# #?????????????????????? | | +##%% # ## ?????????# #?????????????????????? | | ##* =#? ## ????????# ##############????????? | | ##! #? =#? ????????# ???????? | | ## #??#####?? ??###### ???????? | | ## a#??????####+### ???????? | | ## #??????# w #####+#####????????? | | # ?###### ^^ !@ #??????????????????? | | # ! ^ #??????????????????? | | # < r #??????????????????? | | # #### # #?????????????????? | | # ##?????????# ^ # +?????????????????? | | # ###??????????# # #?????????????????? | | # #????????????# #####?????????????????? | | ## ?????????????# = #####?????????????????? | | ?# ?????????????# === +?????????????????? | | ?# ?????????????# g#"Y"#######?????????????????? | | ?? ?????????????#gk#"""#???????????????????????? | | ????????????????? u #####???????????????????????? | | ????????????????#### #???????????????????????????? | | ???????????????????# #???????????????????????????? | | ???????????????????# #???????????????????????????? | | ???????????????????# #???????????????????????????? | | ???????????????????? ????????????????????????????? | | ???????????????????? ????????????????????????????? | | ???????????????????? ????????????????????????????? | | ???????????????????? ????????????????????????????? | | ???????????????????? ????????????????????????????? | | ???????????????????? ????????????????????????????? | | ????????????????????#????????????????????????????? | | ?????????????????????????????????????????????????? | | ?????????????????????????????????????????????????? | +----------------------------------------------------+ Best States ------------- Heat Dissipation 28 Energy Generation 14 Energy Capacity 280 Matter Stores 300 Matter Capacity 300 Sight Range 16 Terrain Scan Density 10 Armor Coverage 150 Weapon Shielding 33 Evasion (%) 55 Targeting Accuracy 6 Item Schematics ----------------- Imp. Heat Sink | -9/Materials | Scanalyzed Robot Schematics ------------------ None Fabricated ------------ Nothing Alien Tech Used ----------------- None Achievements -------------- Let's See Who's Tougher True Hacker Challenges ------------ None Game ------ Seed CombatBackupShovel Manual? 0 Play Time 00:17:47 Cumulative 13.3 hours Start 2025.03.19 @ 21:41:50 End 2025.03.19 @ 22:01:39 Sessions 1 Manual Loads 0 Difficulty Rogue Special Mode None Game No. 16 Rogue 15 Adventurer 1 Explorer 0 Win Type - Total 0 Types 0/0/0/0/0/0/0/0/0 Lore% 8 Gallery% 18 Achievement% 18 Wizard Run 0 Options --------- Layout 0 ASCII 0 Keyboard 0 Movement Mouse Keybinds 0 Fullscreen 1 Font 16/SmallcapsGlow Map View 75x55 Zoom Use 0% Tactical HUD 1 Map Filters NONE Filters NONE Steam 1 RUN: 6a1bae60-1b65-489b-bf06-301a7514cba8